[Event "MČR v rapid šachu družstev 2019"]
[Site "Teplice, Czech Republic"]
[Date "2019.09.15"]
[Round "5.8"]
[White "Duran, Tomas"]
[Black "Cech, Pavel"]
[Result "0-1"]
[TimeControl "15 min. + 5s"]
[WhiteElo "2135"]
[BlackElo "2394"]

1. e4 {[%clk 00:15:07]} e6 {[%clk 00:15:09]} {[%emt 00:00:02]} 2. d4 {[%clk
00:15:01]} {[%emt 00:00:12]} d5 {[%clk 00:15:11]} {[%emt 00:00:01]} 3. e5
{[%clk 00:15:05]} {[%emt 00:00:02]} c5 {[%clk 00:15:13]} {[%emt 00:00:04]} 4.
c3 {[%clk 00:15:08]} Nc6 {[%clk 00:15:16]} {[%emt 00:00:03]} 5. Nf3 {[%clk
00:15:12]} {[%emt 00:00:03]} Bd7 {[%clk 00:15:11]} {[%emt 00:00:08]} 6. Be2
{[%clk 00:15:02]} {[%emt 00:00:16]} Nge7 {[%clk 00:14:53]} {[%emt 00:00:22]} 7.
dxc5 {[%clk 00:12:23]} {[%emt 00:02:44]} Ng6 {[%clk 00:14:53]} {[%emt
00:00:05]} 8. b4 {[%clk 00:12:26]} {[%emt 00:00:02]} a5 {[%clk 00:14:30]}
{[%emt 00:00:28]} 9. Bg5 {[%clk 00:10:16]} {[%emt 00:02:16]} Qb8 {[%clk
00:10:21]} {[%emt 00:04:14]} 10. Bd2 {[%clk 00:08:16]} {[%emt 00:02:05]} Ngxe5
{[%clk 00:09:44]} {[%emt 00:00:42]} 11. O-O {[%clk 00:07:52]} {[%emt 00:00:29]}
Be7 {[%clk 00:09:36]} {[%emt 00:00:12]} 12. a4 {[%clk 00:07:09]} {[%emt
00:00:48]} O-O {[%clk 00:09:29]} {[%emt 00:00:12]} 13. Na3 {[%clk 00:06:30]}
{[%emt 00:00:44]} axb4 {[%clk 00:09:10]} {[%emt 00:00:24]} 14. cxb4 {[%clk
00:06:34]} {[%emt 00:00:01]} Nxf3+ {[%clk 00:09:13]} {[%emt 00:00:02]} 15. Bxf3
{[%clk 00:06:35]} {[%emt 00:00:03]} Nd4 {[%clk 00:08:22]} {[%emt 00:00:57]} 16.
a5 {[%clk 00:04:52]} {[%emt 00:01:48]} Bf6 {[%clk 00:07:52]} {[%emt 00:00:35]}
17. Bc3 {[%clk 00:04:09]} {[%emt 00:00:48]} Nxf3+ {[%clk 00:07:44]} {[%emt
00:00:13]} 18. Qxf3 {[%clk 00:04:13]} {[%emt 00:00:02]} d4 {[%clk 00:07:47]}
{[%emt 00:00:01]} 19. Bb2 {[%clk 00:04:12]} {[%emt 00:00:06]} Bc6 {[%clk
00:07:22]} {[%emt 00:00:31]} 20. Qg4 {[%clk 00:04:06]} {[%emt 00:00:11]} e5
{[%clk 00:07:12]} {[%emt 00:00:15]} 21. Rad1 {[%clk 00:04:00]} {[%emt
00:00:10]} Qd8 {[%clk 00:07:06]} {[%emt 00:00:10]} 22. Rfe1 {[%clk 00:03:46]}
{[%emt 00:00:20]} Qd5 {[%clk 00:07:06]} {[%emt 00:00:05]} 23. Qh3 {[%clk
00:03:06]} {[%emt 00:00:45]} Rad8 {[%clk 00:06:42]} {[%emt 00:00:28]} 24. Rd3
{[%clk 00:02:08]} {[%emt 00:01:04]} g6 {[%clk 00:06:05]} {[%emt 00:00:42]} 25.
b5 {[%clk 00:01:34]} {[%emt 00:00:38]} Bd7 {[%clk 00:06:05]} {[%emt 00:00:05]}
26. Qf3 {[%clk 00:01:38]} {[%emt 00:00:02]} Bf5 {[%clk 00:05:30]} {[%emt
00:00:39]} 27. Rdd1 {[%clk 00:01:08]} {[%emt 00:00:35]} e4 {[%clk 00:04:40]}
{[%emt 00:00:55]} 28. Qf4 {[%clk 00:01:08]} {[%emt 00:00:05]} Qxc5 {[%clk
00:04:26]} {[%emt 00:00:19]} 29. g4 {[%clk 00:00:58]} {[%emt 00:00:15]} Be5
{[%clk 00:04:29]} {[%emt 00:00:01]} 30. Qg5 {[%clk 00:01:02]} {[%emt 00:00:02]}
Be6 {[%clk 00:04:16]} {[%emt 00:00:19]} 31. f4 {[%clk 00:00:25]} {[%emt
00:00:42]} Bd6 {[%clk 00:04:14]} {[%emt 00:00:06]} 32. Qxc5 {[%clk 00:00:18]}
{[%emt 00:00:12]} Bxc5 {[%clk 00:04:18]} {[%emt 00:00:01]} 33. Rxe4 {[%clk
00:00:22]} {[%emt 00:00:01]} Bxg4 {[%clk 00:04:04]} {[%emt 00:00:18]} 34. Rd2
{[%clk 00:00:26]} {[%emt 00:00:02]} Bb4 {[%clk 00:04:01]} {[%emt 00:00:08]} 35.
Rdxd4 {[%clk 00:00:18]} {[%emt 00:00:13]} Bc5 {[%clk 00:04:03]} {[%emt
00:00:02]} 36. Kg2 {[%clk 00:00:15]} {[%emt 00:00:09]} Bxd4 {[%clk 00:04:04]}
{[%emt 00:00:04]} 37. Rxd4 {[%clk 00:00:19]} {[%emt 00:00:02]} Rxd4 {[%clk
00:04:02]} {[%emt 00:00:07]} 38. Bxd4 {[%clk 00:00:23]} {[%emt 00:00:01]} Be2
{[%clk 00:03:57]} {[%emt 00:00:10]} 39. Kf2 {[%clk 00:00:23]} {[%emt 00:00:05]}
Re8 {[%clk 00:04:00]} 40. Be5 {[%clk 00:00:22]} {[%emt 00:00:06]} Bd3 {[%clk
00:03:54]} {[%emt 00:00:11]} 41. Ke3 {[%clk 00:00:13]} {[%emt 00:00:14]} f6
{[%clk 00:03:19]} {[%emt 00:00:40]} 42. Kxd3 {[%clk 00:00:17]} {[%emt
00:00:02]} fxe5 {[%clk 00:03:23]} 43. fxe5 {[%clk 00:00:19]} {[%emt 00:00:03]}
Rxe5 {[%clk 00:03:27]} {[%emt 00:00:01]} 44. Kd4 {[%clk 00:00:17]} {[%emt
00:00:07]} Re2 {[%clk 00:02:37]} {[%emt 00:00:55]} 45. Nc4 {[%clk 00:00:16]}
{[%emt 00:00:06]} Rxh2 {[%clk 00:02:26]} {[%emt 00:00:16]} 46. Kc5 {[%clk
00:00:16]} {[%emt 00:00:05]} g5 {[%clk 00:01:56]} {[%emt 00:00:35]} 47. Kb6
{[%clk 00:00:15]} {[%emt 00:00:06]} g4 {[%clk 00:01:57]} {[%emt 00:00:04]} 48.
Kxb7 {[%clk 00:00:15]} {[%emt 00:00:06]} g3 {[%clk 00:01:42]} {[%emt 00:00:20]}
49. Ne3 {[%clk 00:00:13]} {[%emt 00:00:06]} Re2 {[%clk 00:01:43]} {[%emt
00:00:04]} 50. Ng2 {[%clk 00:00:00]} {[%emt 00:00:13]} Rxg2 {[%clk 00:01:43]}
{[%emt 00:00:03]} 0-1

[Event "MČR v rapid šachu družstev 2019"]
[Site "Teplice, Czech Republic"]
[Date "2019.09.15"]
[Round "5.9"]
[White "Jirovsky, Milos"]
[Black "Vojta, Tomas"]
[Result "1-0"]
[TimeControl "15 min. + 5s"]
[WhiteElo "2477"]
[BlackElo "2402"]

1. d4 {[%clk 00:15:09]} d5 {[%clk 00:15:09]} {[%emt 00:00:02]} 2. Bf4 {[%clk
00:15:12]} {[%emt 00:00:01]} c5 {[%clk 00:15:08]} {[%emt 00:00:06]} 3. e3
{[%clk 00:15:16]} {[%emt 00:00:02]} Nc6 {[%clk 00:15:12]} {[%emt 00:00:01]} 4.
c3 {[%clk 00:15:18]} {[%emt 00:00:02]} Nf6 {[%clk 00:14:53]} {[%emt 00:00:23]}
5. Nd2 {[%clk 00:15:22]} {[%emt 00:00:01]} Bf5 {[%clk 00:14:02]} {[%emt
00:00:56]} 6. Qb3 {[%clk 00:15:20]} {[%emt 00:00:07]} Qc8 {[%clk 00:13:46]}
{[%emt 00:00:21]} 7. Ngf3 {[%clk 00:15:22]} {[%emt 00:00:03]} e6 {[%clk
00:13:46]} {[%emt 00:00:05]} 8. h3 {[%clk 00:14:49]} {[%emt 00:00:38]} h6
{[%clk 00:13:49]} {[%emt 00:00:02]} 9. Be2 {[%clk 00:14:41]} {[%emt 00:00:13]}
Be7 {[%clk 00:13:41]} {[%emt 00:00:14]} 10. O-O {[%clk 00:14:26]} {[%emt
00:00:19]} c4 {[%clk 00:13:28]} {[%emt 00:00:19]} 11. Qd1 {[%clk 00:14:29]}
{[%emt 00:00:02]} O-O {[%clk 00:13:31]} {[%emt 00:00:02]} 12. a4 {[%clk
00:14:25]} {[%emt 00:00:09]} a6 {[%clk 00:13:21]} {[%emt 00:00:15]} 13. a5
{[%clk 00:13:58]} {[%emt 00:00:32]} Qd8 {[%clk 00:12:52]} {[%emt 00:00:35]} 14.
Qa4 {[%clk 00:13:53]} {[%emt 00:00:10]} Bd6 {[%clk 00:12:54]} {[%emt 00:00:03]}
15. Bxd6 {[%clk 00:13:28]} {[%emt 00:00:29]} Qxd6 {[%clk 00:12:58]} {[%emt
00:00:01]} 16. Rfc1 {[%clk 00:13:18]} {[%emt 00:00:15]} Rfb8 {[%clk 00:12:28]}
{[%emt 00:00:35]} 17. b3 {[%clk 00:13:10]} {[%emt 00:00:13]} cxb3 {[%clk
00:12:23]} {[%emt 00:00:10]} 18. Nxb3 {[%clk 00:13:14]} {[%emt 00:00:01]} Ne4
{[%clk 00:11:30]} {[%emt 00:00:59]} 19. Nfd2 {[%clk 00:11:57]} {[%emt
00:01:22]} Nxd2 {[%clk 00:11:17]} {[%emt 00:00:18]} 20. Nxd2 {[%clk 00:12:01]}
{[%emt 00:00:01]} e5 {[%clk 00:10:58]} {[%emt 00:00:24]} 21. Bf3 {[%clk
00:11:06]} {[%emt 00:01:00]} Bd3 {[%clk 00:09:58]} {[%emt 00:01:06]} 22. Qa3
{[%clk 00:09:01]} {[%emt 00:02:11]} Qe6 {[%clk 00:09:42]} {[%emt 00:00:20]} 23.
c4 {[%clk 00:08:53]} {[%emt 00:00:13]} e4 {[%clk 00:09:31]} {[%emt 00:00:16]}
24. cxd5 {[%clk 00:08:49]} {[%emt 00:00:08]} Qxd5 {[%clk 00:09:34]} {[%emt
00:00:02]} 25. Qxd3 {[%clk 00:08:45]} {[%emt 00:00:09]} exf3 {[%clk 00:09:26]}
{[%emt 00:00:13]} 26. Rc5 {[%clk 00:08:08]} {[%emt 00:00:42]} Qd8 {[%clk
00:08:38]} {[%emt 00:00:52]} 27. Nxf3 {[%clk 00:08:09]} {[%emt 00:00:03]} Rc8
{[%clk 00:08:43]} {[%emt 00:00:01]} 28. Qb3 {[%clk 00:07:58]} {[%emt 00:00:16]}
Qe7 {[%clk 00:08:36]} {[%emt 00:00:11]} 29. Rac1 {[%clk 00:07:10]} {[%emt
00:00:53]} Rd8 {[%clk 00:08:26]} {[%emt 00:00:16]} 30. d5 {[%clk 00:05:55]}
{[%emt 00:01:20]} Na7 {[%clk 00:07:49]} {[%emt 00:00:42]} 31. Rc7 {[%clk
00:05:30]} {[%emt 00:00:29]} Rd7 {[%clk 00:07:52]} {[%emt 00:00:02]} 32. Qxb7
{[%clk 00:05:26]} {[%emt 00:00:08]} 1-0

[Event "MČR v rapid šachu družstev 2019"]
[Site "Teplice, Czech Republic"]
[Date "2019.09.15"]
[Round "5.10"]
[White "Zeman, Matyas"]
[Black "Sokolov, Alexander"]
[Result "1/2-1/2"]
[TimeControl "15 min. + 5s"]
[WhiteElo "2247"]
[BlackElo "2384"]

1. e4 {[%clk 00:15:08]} {[%emt 00:00:02]} c5 {[%clk 00:15:08]} {[%emt
00:00:02]} 2. Nf3 {[%clk 00:15:00]} {[%emt 00:00:13]} d6 {[%clk 00:15:11]}
{[%emt 00:00:02]} 3. Nc3 {[%clk 00:15:03]} {[%emt 00:00:02]} Nf6 {[%clk
00:15:11]} {[%emt 00:00:06]} 4. e5 {[%clk 00:15:06]} {[%emt 00:00:01]} dxe5
{[%clk 00:15:06]} {[%emt 00:00:10]} 5. Nxe5 {[%clk 00:15:10]} {[%emt 00:00:01]}
Nbd7 {[%clk 00:15:09]} {[%emt 00:00:02]} 6. Nc4 {[%clk 00:15:02]} {[%emt
00:00:13]} g6 {[%clk 00:14:37]} {[%emt 00:00:37]} 7. g3 {[%clk 00:15:05]}
{[%emt 00:00:03]} Nb6 {[%clk 00:14:15]} {[%emt 00:00:26]} 8. Nxb6 {[%clk
00:15:03]} {[%emt 00:00:07]} Qxb6 {[%clk 00:14:18]} {[%emt 00:00:03]} 9. Bg2
{[%clk 00:14:34]} {[%emt 00:00:34]} Bg4 {[%clk 00:14:16]} {[%emt 00:00:06]} 10.
f3 {[%clk 00:14:38]} Be6 {[%clk 00:13:59]} {[%emt 00:00:23]} 11. d3 {[%clk
00:14:28]} {[%emt 00:00:16]} Bg7 {[%clk 00:13:58]} {[%emt 00:00:06]} 12. Qe2
{[%clk 00:14:12]} {[%emt 00:00:21]} O-O {[%clk 00:13:55]} {[%emt 00:00:08]} 13.
Rb1 {[%clk 00:13:51]} {[%emt 00:00:26]} Nd5 {[%clk 00:13:09]} {[%emt 00:00:50]}
14. Nxd5 {[%clk 00:13:50]} {[%emt 00:00:07]} Bxd5 {[%clk 00:13:12]} {[%emt
00:00:02]} 15. b3 {[%clk 00:13:45]} {[%emt 00:00:10]} Qa5+ {[%clk 00:13:06]}
{[%emt 00:00:11]} 16. Bd2 {[%clk 00:13:33]} {[%emt 00:00:17]} Qxa2 {[%clk
00:13:04]} {[%emt 00:00:07]} 17. Rc1 {[%clk 00:12:49]} {[%emt 00:00:50]} Bb2
{[%clk 00:12:18]} {[%emt 00:00:50]} 18. Rd1 {[%clk 00:12:52]} {[%emt 00:00:03]}
Bd4 {[%clk 00:12:06]} {[%emt 00:00:16]} 19. Bh6 {[%clk 00:12:33]} {[%emt
00:00:25]} Rfe8 {[%clk 00:12:02]} {[%emt 00:00:09]} 20. h4 {[%clk 00:10:44]}
{[%emt 00:01:54]} Qa5+ {[%clk 00:12:01]} {[%emt 00:00:06]} 21. Kf1 {[%clk
00:10:47]} {[%emt 00:00:01]} Rad8 {[%clk 00:11:38]} {[%emt 00:00:28]} 22. h5
{[%clk 00:10:49]} {[%emt 00:00:03]} Rd6 {[%clk 00:11:21]} {[%emt 00:00:21]} 23.
hxg6 {[%clk 00:10:49]} {[%emt 00:00:06]} fxg6 {[%clk 00:10:53]} {[%emt
00:00:33]} 24. f4 {[%clk 00:10:26]} {[%emt 00:00:28]} Bxg2+ {[%clk 00:10:13]}
{[%emt 00:00:45]} 25. Kxg2 {[%clk 00:10:29]} {[%emt 00:00:02]} Qc7 {[%clk
00:09:50]} {[%emt 00:00:27]} 26. Rhf1 {[%clk 00:09:38]} {[%emt 00:00:56]} Qc6+
{[%clk 00:09:46]} {[%emt 00:00:10]} 27. Qe4 {[%clk 00:09:41]} {[%emt 00:00:02]}
Re6 {[%clk 00:08:23]} {[%emt 00:01:27]} 28. Qxc6 {[%clk 00:09:27]} {[%emt
00:00:19]} Rxc6 {[%clk 00:08:27]} 29. Rde1 {[%clk 00:09:18]} {[%emt 00:00:15]}
Bf6 {[%clk 00:07:53]} {[%emt 00:00:38]} 30. g4 {[%clk 00:09:06]} {[%emt
00:00:17]} Kf7 {[%clk 00:07:31]} {[%emt 00:00:27]} 31. Bg5 {[%clk 00:09:05]}
{[%emt 00:00:07]} a5 {[%clk 00:06:11]} {[%emt 00:01:25]} 32. Bxf6 {[%clk
00:09:05]} {[%emt 00:00:05]} exf6 {[%clk 00:06:09]} {[%emt 00:00:06]} 33. Rxe8
{[%clk 00:08:59]} {[%emt 00:00:10]} Kxe8 {[%clk 00:06:13]} {[%emt 00:00:01]} 34.
Rh1 {[%clk 00:09:02]} {[%emt 00:00:03]} Rc7 {[%clk 00:06:15]} {[%emt 00:00:03]}
35. Kf3 {[%clk 00:08:58]} {[%emt 00:00:09]} Re7 {[%clk 00:06:19]} {[%emt
00:00:01]} 36. f5 {[%clk 00:08:12]} {[%emt 00:00:51]} b6 {[%clk 00:05:24]}
{[%emt 00:01:00]} 37. fxg6 {[%clk 00:07:58]} {[%emt 00:00:20]} hxg6 {[%clk
00:05:27]} {[%emt 00:00:01]} 38. Rh8+ {[%clk 00:07:39]} {[%emt 00:00:23]} Kd7
{[%clk 00:05:19]} {[%emt 00:00:13]} 39. Rf8 {[%clk 00:07:30]} {[%emt 00:00:15]}
Re6 {[%clk 00:05:22]} {[%emt 00:00:02]} 40. Kf4 {[%clk 00:05:57]} {[%emt
00:01:37]} Kc6 {[%clk 00:04:55]} {[%emt 00:00:32]} 41. Rg8 {[%clk 00:05:46]}
{[%emt 00:00:17]} f5 {[%clk 00:04:12]} {[%emt 00:00:48]} 42. gxf5 {[%clk
00:05:49]} {[%emt 00:00:01]} gxf5 {[%clk 00:04:16]} {[%emt 00:00:01]} 43. Rg2
{[%clk 00:05:32]} {[%emt 00:00:22]} Kb5 {[%clk 00:03:51]} {[%emt 00:00:29]} 44.
c3 {[%clk 00:04:46]} {[%emt 00:00:52]} Re1 {[%clk 00:03:34]} {[%emt 00:00:23]}
45. Kxf5 {[%clk 00:04:49]} {[%emt 00:00:02]} Rb1 {[%clk 00:03:27]} {[%emt
00:00:11]} 46. d4 {[%clk 00:04:27]} {[%emt 00:00:27]} Rxb3 {[%clk 00:03:10]}
{[%emt 00:00:22]} 47. d5 {[%clk 00:04:31]} {[%emt 00:00:02]} Rxc3 {[%clk
00:03:13]} {[%emt 00:00:03]} 48. Rd2 {[%clk 00:04:35]} Rf3 {[%clk 00:02:56]}
{[%emt 00:00:22]} 49. Ke6 {[%clk 00:04:39]} Rf8 {[%clk 00:02:58]} {[%emt
00:00:03]} 50. Rb2+ {[%clk 00:04:29]} {[%emt 00:00:15]} Ka6 {[%clk 00:03:01]}
{[%emt 00:00:02]} 51. Ke7 {[%clk 00:04:30]} {[%emt 00:00:05]} Rh8 {[%clk
00:02:56]} {[%emt 00:00:10]} 52. d6 {[%clk 00:04:13]} {[%emt 00:00:22]} a4
{[%clk 00:02:59]} {[%emt 00:00:01]} 53. Kd7 {[%clk 00:03:49]} {[%emt 00:00:29]}
b5 {[%clk 00:01:53]} {[%emt 00:01:11]} 54. Kc6 {[%clk 00:03:50]} {[%emt
00:00:04]} Rc8 {[%clk 00:01:57]} {[%emt 00:00:01]} 55. Kd7 {[%clk 00:03:53]}
{[%emt 00:00:02]} Rb8 {[%clk 00:02:01]} 56. Kc6 {[%clk 00:03:56]} {[%emt
00:00:03]} c4 {[%clk 00:02:00]} {[%emt 00:00:06]} 57. d7 {[%clk 00:03:56]}
{[%emt 00:00:06]} Rd8 {[%clk 00:01:34]} {[%emt 00:00:30]} 58. Rxb5 {[%clk
00:03:55]} {[%emt 00:00:06]} Rxd7 {[%clk 00:01:21]} {[%emt 00:00:18]} 59. Rb6+
{[%clk 00:03:56]} {[%emt 00:00:04]} 1/2-1/2

[Event "MČR v rapid šachu družstev 2019"]
[Site "Teplice, Czech Republic"]
[Date "2019.09.15"]
[Round "5.11"]
[White "Dolezal, Radoslav"]
[Black "Svanda, Ondrej"]
[Result "1/2-1/2"]
[TimeControl "15 min. + 5s"]
[WhiteElo "2363"]
[BlackElo "1920"]

1. d4 {[%clk 00:15:08]} {[%emt 00:00:01]} Nf6 {[%clk 00:15:09]} {[%emt
00:00:01]} 2. Bg5 {[%clk 00:15:10]} {[%emt 00:00:03]} c5 {[%clk 00:15:13]} 3.
Bxf6 {[%clk 00:15:12]} {[%emt 00:00:04]} exf6 {[%clk 00:15:17]} {[%emt
00:00:01]} 4. d5 {[%clk 00:15:16]} {[%emt 00:00:01]} f5 {[%clk 00:15:21]} 5. c3
{[%clk 00:15:10]} {[%emt 00:00:10]} d6 {[%clk 00:15:15]} {[%emt 00:00:11]} 6.
e3 {[%clk 00:15:13]} {[%emt 00:00:02]} g6 {[%clk 00:15:15]} {[%emt 00:00:05]} 7.
a4 {[%clk 00:14:29]} {[%emt 00:00:48]} Bg7 {[%clk 00:15:15]} {[%emt 00:00:05]}
8. Bb5+ {[%clk 00:14:15]} {[%emt 00:00:19]} Nd7 {[%clk 00:14:59]} {[%emt
00:00:21]} 9. Nf3 {[%clk 00:14:11]} {[%emt 00:00:09]} O-O {[%clk 00:15:01]}
{[%emt 00:00:03]} 10. Bxd7 {[%clk 00:14:14]} {[%emt 00:00:02]} Bxd7 {[%clk
00:14:56]} {[%emt 00:00:09]} 11. O-O {[%clk 00:14:16]} {[%emt 00:00:03]} Qc7
{[%clk 00:13:38]} {[%emt 00:01:23]} 12. Na3 {[%clk 00:10:35]} {[%emt 00:03:46]}
a6 {[%clk 00:13:08]} {[%emt 00:00:36]} 13. Nc2 {[%clk 00:08:53]} {[%emt
00:01:47]} b5 {[%clk 00:12:54]} {[%emt 00:00:19]} 14. axb5 {[%clk 00:08:57]}
{[%emt 00:00:02]} axb5 {[%clk 00:12:56]} {[%emt 00:00:03]} 15. Qd2 {[%clk
00:08:55]} {[%emt 00:00:07]} Rfe8 {[%clk 00:11:56]} {[%emt 00:01:05]} 16. h3
{[%clk 00:08:55]} {[%emt 00:00:05]} h6 {[%clk 00:11:55]} {[%emt 00:00:06]} 17.
Rfb1 {[%clk 00:08:35]} {[%emt 00:00:25]} Rec8 {[%clk 00:11:00]} {[%emt
00:01:00]} 18. Kh1 {[%clk 00:07:35]} {[%emt 00:01:06]} Qb7 {[%clk 00:09:57]}
{[%emt 00:01:08]} 19. Ng1 {[%clk 00:07:14]} {[%emt 00:00:26]} Rxa1 {[%clk
00:09:17]} {[%emt 00:00:45]} 20. Rxa1 {[%clk 00:07:18]} {[%emt 00:00:02]} Ra8
{[%clk 00:09:22]} 21. Rb1 {[%clk 00:05:08]} {[%emt 00:02:15]} Ra2 {[%clk
00:09:19]} {[%emt 00:00:08]} 22. Ne2 {[%clk 00:05:10]} {[%emt 00:00:02]} Ra8
{[%clk 00:07:04]} {[%emt 00:02:20]} 23. b4 {[%clk 00:04:17]} {[%emt 00:00:58]}
c4 {[%clk 00:06:57]} {[%emt 00:00:12]} 24. Ne1 {[%clk 00:04:01]} {[%emt
00:00:20]} Ra3 {[%clk 00:06:45]} {[%emt 00:00:18]} 25. Rc1 {[%clk 00:03:45]}
{[%emt 00:00:21]} Qa8 {[%clk 00:06:29]} {[%emt 00:00:21]} 26. Nf3 {[%clk
00:03:31]} {[%emt 00:00:20]} Ra2 {[%clk 00:06:12]} {[%emt 00:00:23]} 27. Rc2
{[%clk 00:03:04]} {[%emt 00:00:32]} Rxc2 {[%clk 00:06:06]} {[%emt 00:00:11]} 28.
Qxc2 {[%clk 00:03:07]} Qxd5 {[%clk 00:06:10]} {[%emt 00:00:01]} 29. Nfd4 {[%clk
00:03:04]} {[%emt 00:00:08]} Qa8 {[%clk 00:05:26]} {[%emt 00:00:50]} 30. Qd2
{[%clk 00:02:23]} {[%emt 00:00:46]} Bc6 {[%clk 00:03:36]} {[%emt 00:01:54]} 31.
f3 {[%clk 00:02:05]} {[%emt 00:00:23]} Be5 {[%clk 00:02:55]} {[%emt 00:00:46]}
32. Kg1 {[%clk 00:02:04]} {[%emt 00:00:06]} Kg7 {[%clk 00:02:31]} {[%emt
00:00:29]} 33. Kf2 {[%clk 00:02:06]} {[%emt 00:00:03]} h5 {[%clk 00:02:22]}
{[%emt 00:00:14]} 34. h4 {[%clk 00:01:24]} {[%emt 00:00:47]} Bf6 {[%clk
00:02:16]} {[%emt 00:00:12]} 35. g3 {[%clk 00:01:20]} {[%emt 00:00:08]} Kg8
{[%clk 00:01:48]} {[%emt 00:00:33]} 36. Qb2 {[%clk 00:01:13]} {[%emt 00:00:12]}
Be5 {[%clk 00:01:25]} {[%emt 00:00:28]} 37. Qd2 {[%clk 00:01:17]} {[%emt
00:00:01]} Bd7 {[%clk 00:01:12]} {[%emt 00:00:19]} 38. Qb2 {[%clk 00:01:11]}
{[%emt 00:00:11]} Qa4 {[%clk 00:01:09]} {[%emt 00:00:07]} 39. Qd2 {[%clk
00:01:11]} {[%emt 00:00:05]} Qa1 {[%clk 00:01:06]} {[%emt 00:00:08]} 40. Qc1
{[%clk 00:00:56]} {[%emt 00:00:20]} Qa2 {[%clk 00:00:34]} {[%emt 00:00:38]} 41.
Qc2 {[%clk 00:01:00]} Qa1 {[%clk 00:00:27]} {[%emt 00:00:12]} 42. Qc1 {[%clk
00:01:04]} {[%emt 00:00:01]} Qxc1 {[%clk 00:00:29]} {[%emt 00:00:03]} 43. Nxc1
{[%clk 00:01:07]} Kg7 {[%clk 00:00:23]} {[%emt 00:00:11]} 44. Nce2 {[%clk
00:01:11]} {[%emt 00:00:02]} Kf8 {[%clk 00:00:18]} {[%emt 00:00:10]} 45. Nf4
{[%clk 00:00:46]} {[%emt 00:00:30]} Bxf4 {[%clk 00:00:18]} {[%emt 00:00:05]} 46.
exf4 {[%clk 00:00:43]} {[%emt 00:00:07]} 1/2-1/2